Cogmind - Beta 11 @@@ ROGUE MODE // 2022.03.26 @ 22:39:47 Player: maxwell Result: Self-destructed Performance ------------- Evolutions (7) 3500 Regions Visited (24) 4800 Robots Destroyed (383) 1915 Value Destroyed (17031) 17031 Prototype IDs (31) 620 Alien Tech Used (0) 0 Bonus (8096) 8096 TOTAL SCORE: 35962 Bonus ------- High Alert Combat Kills 3060 Follower Combat Kills 2844 Network Hubs Disabled 200 Triggered Deep Caves Wall 500 Exposed GOLEM Chamber 500 Met Warlord at Base 500 MAIN.C Attacked Warlord 500 Warlord Defense Kill 1040 Built Enhanced Grunts 300 Friendly Fire -1348 Cogmind --------- Core Integrity 409/1300 Matter 274/300 Energy 893/1100 System Corruption 13% Temperature Cool (0) Movement Rolling (175) Ox5 Location -3/Research Parts ------- > --- POWER (2) -------- (None) > --- PROPULSION (8) --- Compact Wheel > --- UTILITY (8) ------ Huge Storage Unit Assembled Biocell Array 0b10 Decoder Chip [Skirmisher] Graphene Brace Dynamic Insulation System > --- WEAPON (3) ------- AWS/Thermal > --- INVENTORY (25) --- Advanced Heat Sink Improved Energy Well (400) Improved Matter Compressor (130) Long-range Sensor Array Advanced Terrain Scan Processor Quantum Capacitor Improved Transmission Jammer Experimental Cloaking Device Heavy Reflective Plating Gamma Rifle Gamma Rifle Heavy Disruptor Cannon GAL Module Peak State ------------ > --- POWER ------------ Assembled Flux Generator > --- PROPULSION ------- Medium Treads Myomer Leg Myomer Leg Myomer Leg Advanced VSS Leg Assembled Alloy Leg Assembled Alloy Leg Centrium Wheel > --- UTILITY ---------- Advanced Heat Sink Huge Storage Unit Improved Energy Well Assembled Biocell Array Graphene Brace Point Defense Array GOLEM Unit > --- WEAPON ----------- Heavy Neutron Cannon Assembled Focal Cannon Helical Railgun > --- INVENTORY -------- Particle Reactor Advanced Heat Sink Large Matter Pod Long-range Sensor Array Long-range Sensor Array 0b10 Decoder Chip [Skirmisher] Quantum Capacitor Improved Transmission Jammer Experimental Cloaking Device Gamma Rifle Gamma Rifle Gamma Rifle Gatling Laser AWS/Thermal Railgun Heavy Mass Driver GAL Module [Rating: 165] Favorites ----------- Power Assembled Flux Generator Engine Heavy Ion Engine Power Core Neutrino Core Reactor Assembled Flux Generator Propulsion Light Treads Treads Light Treads Leg Assembled Alloy Leg Wheel Centrium Wheel Utility High-capacity Storage Unit Device GOLEM Unit Storage High-capacity Storage Unit Processor Improved Signal Interpreter Hackware Makeshift System Shield Protection Light Armor Plating Weapon Assembled Focal Cannon Energy Gun Improved Lightning Gun Energy Cannon Assembled Focal Cannon Ballistic Gun Assault Rifle Ballistic Cannon Assault Cannon Launcher Scatter Rocket Array Special Weapon Plasma Flamer Impact Weapon Mace Piercing Weapon Makeshift Spear Build | -11 -10 -10 -10 -9 -8 -8 -7 -7 -7 -7 -7 -6 -6 -5 -5 -5 -5 -4 -4 -4 -4 -4 -4 -3 ------- Run | Scr Mat Min Exi Min Mat Sto Fac Low Low Zio Dee Pro Fac Fac Upp Upp War Pro Fac Ext Cet Arc Hub Res Slots Evolved 14 | . . . . . 4 . 2 . . . . . 2 2 . . . . 2 . . . . 2 Power 1 | . . . . . . . . . . . . . 1 . . . . . . . . . . . Propulsion 6 | . . . . . 2 . . . . . . . . 1 . . . . 1 . . . . 2 Utility 6 | . . . . . 1 . 2 . . . . . 1 1 . . . . 1 . . . . . Weapon 1 | . . . . . 1 . . . . . . . . . . . . . . . . . . . Parts Attached 365 | 6 14 3 2 3 24 38 6 6 11 28 44 13 19 11 6 9 8 7 4 16 6 7 33 41 Power 24 | 1 1 . 1 . 1 2 . . . 2 3 3 3 . . . 1 . . . 1 . 3 2 Engine 11 | 1 1 . 1 . 1 2 . . . . 2 1 2 . . . . . . . . . . . Core 6 | . . . . . . . . . . 2 1 2 1 . . . . . . . . . . . Reactor 7 | . . . . . . . . . . . . . . . . . 1 . . . 1 . 3 2 Propulsion 81 | 2 . 1 . 1 8 9 1 1 . 13 10 . 1 2 1 1 2 . 1 7 2 . 9 9 Treads 42 | 2 . 1 . 1 8 9 1 1 . 11 5 . . . . . . . . . . . 1 2 Leg 34 | . . . . . . . . . . 2 5 . 1 2 1 1 2 . 1 7 2 . 7 3 Wheel 5 | . . . . . . . . . . . . . . . . . . . . . . . 1 4 Hover . | . . . . . . . . . . . . . . . . . . . . . . . . . Flight . | . . . . . . . . . . . . . . . . . . . . . . . . . Utility 120 | 1 4 . 1 1 3 5 3 2 4 7 14 3 7 6 4 7 4 7 2 6 1 5 11 12 Device 75 | . 1 . . . 1 2 1 2 4 5 2 2 1 3 4 5 4 6 1 5 1 5 10 10 Storage 14 | 1 2 . . . . . . . . 1 4 . 1 1 . 1 . 1 . . . . 1 1 Processor 10 | . . . 1 . . . 1 . . 1 . . 2 2 . . . . 1 1 . . . 1 Hackware 8 | . . . . . 2 . . . . . 3 . 2 . . 1 . . . . . . . . Protection 13 | . 1 . . 1 . 3 1 . . . 5 1 1 . . . . . . . . . . . Artifact . | . . . . . . . . . . . . . . . . . . . . . . . . . Weapon 140 | 2 9 2 . 1 12 22 2 3 7 6 17 7 8 3 1 1 1 . 1 3 2 2 10 18 Energy Gun 44 | . . . . . . 5 . 2 3 3 9 4 3 . . 1 . . . . . . 3 11 Energy Cannon 13 | . . . . . . 1 . . 1 . . . . 2 1 . . . 1 2 1 . 1 3 Ballistic Gun 40 | 2 3 1 . 1 7 7 1 1 2 1 4 . . . . . . . . 1 . 2 4 3 Ballistic Cannon 4 | . . . . . 1 1 . . . . . 1 . . . . . . . . . . . 1 Launcher 26 | . 3 1 . . 2 4 1 . 1 . 4 1 4 1 . . 1 . . . 1 . 2 . Special Weapon 2 | . . . . . . . . . . . . 1 1 . . . . . . . . . . . Impact Weapon 5 | . 3 . . . . . . . . 2 . . . . . . . . . . . . . . Slashing Weapon . | . . . . . . . . . . . . . . . . . . . . . . . . . Piercing Weapon 6 | . . . . . 2 4 . . . . . . . . . . . . . . . . . . Special Melee Weapon . | . . . . . . . . . . . . . . . . . . . . . . . . . Unidentified Prototypes 26 | . . . . . . 7 . . . . 6 . . 1 . . 5 . 1 . . . 3 3 Corrupted Parts 9 | . . . . . . 3 . . . 2 1 . 1 . . . . . . . . . 2 . System Corruption 46 | . . . . . . 14 . . . 5 5 . 2 . . . . . . . . . 20 . Parts Lost 149 | . 1 2 . 3 11 12 . . . 11 15 7 11 . . . . . . 6 5 3 29 33 Power 15 | . 1 . . . 1 . . . . . 2 3 2 . . . . . . . 1 . 1 4 Propulsion 47 | . . 1 . 1 5 5 . . . 4 4 . 3 . . . . . . 1 2 . 10 11 Utility 37 | . . . . 1 1 3 . . . 6 4 1 4 . . . . . . 2 2 1 7 5 Weapon 50 | . . 1 . 1 4 4 . . . 1 5 3 2 . . . . . . 3 . 2 11 13 Highest Loss Streak 15 | . 1 1 . 3 7 6 . . . 5 7 3 5 . . . . . . 3 3 2 15 10 To Critical Strikes 2 | . . . . . . . . . . . . . 1 . . . . . . . 1 . . . Average Slot Usage (%) 89 | . 96 100 100 98 93 98 100 100 98 89 81 88 83 86 93 91 87 86 89 93 90 87 85 62 Engine 3 | . 14 14 14 14 9 9 7 7 7 . 2 1 2 . . . . . . . . . . . Core 1 | . . . . . . . . . . 6 3 4 . . . . . . . . . . . . Reactor 2 | . . . . . . . . . . . . . 4 4 5 5 5 5 5 5 4 4 6 4 Treads 14 | . 28 28 28 27 31 35 30 30 30 26 17 . . . . . . . . . . . 1 . Leg 12 | . . . . . . . . . . . 8 30 23 23 28 29 29 28 31 30 31 29 26 10 Device 11 | . 2 . . . . 3 15 21 21 19 6 13 6 11 11 10 10 12 13 19 16 15 14 15 Storage 11 | . 14 14 14 14 9 9 7 7 7 6 14 15 12 12 17 17 17 11 10 10 10 10 10 10 Processor 5 | . . . 6 8 . . 7 7 7 6 . . 3 8 11 11 11 11 11 10 10 10 9 2 Hackware 1 | . . . . . 16 7 . . . . 1 . 4 3 . . . . . . . . . . Protection 2 | . 8 14 7 4 . 6 7 1 . . 4 . 2 . . . . . . . . . . . Energy Gun 3 | . . . . . . . 2 7 15 12 6 3 2 . . 1 5 1 . . . . 1 1 Energy Cannon 6 | . . . . . . . . . 1 . 7 16 13 15 16 12 4 10 15 10 14 9 9 5 Ballistic Gun 7 | . 19 24 28 27 23 20 19 15 5 6 3 . . . . . . . . 4 . 4 2 3 Naked Turns . | . . . . . . . . . . . . . . . . . . . . . . . . . Heaviest Build 172 | 12 53 53 52 51 56 68 67 65 74 72 98 98 127 128 128 128 114 171 170 170 159 170 172 166 Greatest Support 175 | 40 40 40 40 40 82 80 80 80 80 80 108 108 108 114 114 114 135 135 165 175 170 170 170 153 Greatest Overweight (x) 56 | 1 1 1 1 2 . 1 . . . 23 32 . 4 1 1 1 . 1 1 1 . 56 7 46 Average Overweight (x) . | . . 1 1 1 . . . . . 2 . . 1 . 1 . . . . . . 14 . 2 Largest Inventory Capacity 25 | 8 20 20 20 20 20 20 20 20 20 20 20 20 20 20 20 20 20 25 25 25 25 25 25 25 Average Capacity 20 | 7 14 20 20 20 20 20 20 20 20 18 19 20 20 20 20 20 20 24 25 25 25 25 25 25 Most Carried 25 | 4 16 20 20 20 20 20 20 20 20 20 20 20 20 20 20 20 20 25 25 25 25 25 25 24 Average Carried 19 | 1 12 16 18 18 18 17 18 19 19 17 18 18 18 19 20 19 19 23 24 24 21 22 21 18 Final Capacity 25 | 8 20 20 20 20 20 20 20 20 20 20 20 20 20 20 20 20 20 25 25 25 25 25 25 25 Final Carried 25 | 4 16 17 20 18 18 20 20 20 20 15 20 20 17 20 20 19 20 25 25 25 21 25 17 16 Class Distribution -------------------- 22% | Mutant 19% | Scavenger-Skirmisher 15% | Golem 10% | Skirmisher 9% | Scavenger-Mutant 6% | Commander-Skirmisher 4% | Commander-Golem 3% | Scavenger-Tank Dominant Class ---------------- Mutant | -10/Materials Mutant | -10/Mines Mutant | -10/Exiles Mutant | -9/Mines Hacker-Gunner | -8/Materials Scavenger-Mutant | -8/Storage Scavenger-Skirmisher | -7/Factory Scavenger-Skirmisher | -7/Lower Caves Scavenger-Skirmisher | -7/Lower Caves Scavenger-Skirmisher | -7/Zion Scavenger-Mutant | -7/Deep Caves Golem | -6/Proximity Caves Golem | -6/Factory Golem | -5/Factory Skirmisher | -5/Upper Caves Skirmisher | -5/Upper Caves Skirmisher | -5/Warlord Golem | -4/Proximity Caves Golem | -4/Factory Commander-Skirmisher | -4/Extension Commander-Skirmisher | -4/Cetus Commander-Golem | -4/Archives Commander-Golem | -4/Hub_04(d) Skirmisher | -3/Research Resources | -11 -10 -10 -10 -9 -8 -8 -7 -7 -7 -7 -7 -6 -6 -5 -5 -5 -5 -4 -4 -4 -4 -4 -4 -3 ----------- Run | Scr Mat Min Exi Min Mat Sto Fac Low Low Zio Dee Pro Fac Fac Upp Upp War Pro Fac Ext Cet Arc Hub Res Matter Collected 10145 | 233 320 214 148 128 906 1465 194 102 138 605 1179 399 476 336 115 83 122 442 69 402 143 163 656 1107 Remotely . | . . . . . . . . . . . . . . . . . . . . . . . . . Salvage Created 19308 | . 342 188 201 35 1296 2023 167 156 162 1071 3029 503 998 803 234 407 330 391 69 2411 376 240 1547 2329 Parts 922 | . 38 15 9 . 114 108 16 3 5 76 52 25 37 35 16 19 13 24 2 93 14 9 73 126 Haulers Intercepted 11 | . 2 . . . 4 4 . . . . . . 1 . . . . . . . . . . . Recyclers Shooed 10 | . . . . . . 5 . . . . . . . . . . . . . 3 . . . 2 Parts Field Recycled . | . . . . . . . . . . . . . . . . . . . . . . . . . Retrieved Matter . | . . . . . . . . . . . . . . . . . . . . . . . . . Parts Self-Destructed 131 | . . . . . . . . . 12 3 . 21 . . 16 20 47 12 . . . . . . Prevented 18 | . . . . . . . . 3 8 . . . . . . . 7 . . . . . . . Kills | -11 -10 -10 -10 -9 -8 -8 -7 -7 -7 -7 -7 -6 -6 -5 -5 -5 -5 -4 -4 -4 -4 -4 -4 -3 ------- Run | Scr Mat Min Exi Min Mat Sto Fac Low Low Zio Dee Pro Fac Fac Upp Upp War Pro Fac Ext Cet Arc Hub Res Combat Hostiles Destroyed 334 | . 12 6 . 4 28 32 2 3 4 3 63 7 26 16 4 7 7 13 1 30 6 2 29 29 Melee 3 | . . . . . . 3 . . . . . . . . . . . . . . . . . . Guns 97 | . 3 6 . 4 17 19 2 2 3 1 1 3 1 . . 3 1 . . 9 . 1 8 13 Cannons 88 | . . . . . 3 3 . . 1 . 3 4 6 10 4 4 . 1 1 16 5 1 12 14 AOE 119 | . 9 . . . 8 7 . . . 1 43 . 18 6 . . 6 10 . . 1 . 9 1 Classes Destroyed 31 | . 9 . . 1 4 1 1 . . 4 3 2 1 . . . 2 . . . . . 3 . Worker 19 | . 2 . . . 2 6 . . . . . . 3 . . . . . . . . . 2 4 Builder 15 | . 2 . . . 7 . . . . . . . 1 1 . . . . . . . . 1 3 Tunneler 2 | . 1 1 . . . . . . . . . . . . . . . . . . . . . . Hauler 11 | . 2 . . . 4 4 . . . . . . 1 . . . . . . . . . . . Recycler 12 | . . . . . 1 5 1 . . . . . . 1 . . . . . 1 . . . 3 Minesweeper 3 | . . . . . . . . . . . . 1 . . . . . 2 . . . . . . Mechanic 4 | . 1 1 . . . . . . . . . . . . . . 2 . . . . . . . Operator 3 | . 1 . . . . . . . . . . . . . . . . . . . . 1 . 1 Watcher 10 | . 1 . . . 2 1 . . . . . . 1 . . . . . . 1 1 . 3 . Swarmer 49 | . 6 4 . . 11 2 . 1 2 . . . 3 5 . . . 9 . 1 . . . 5 Saboteur 1 | . . . . . . . . . . . . . . . . . . . . . . . 1 . Grunt 84 | . 6 2 . . 8 9 . 1 2 . . 2 16 2 . 3 3 2 1 16 2 . 6 3 Brawler 9 | . . . . . 1 1 . . . . . 1 3 . . . . . . . . . 2 1 Duelist 6 | . . . . . . 1 . . . . . . 1 1 . . 1 . . . . . 1 1 Protector 2 | . . . . . . . . . . . . . 1 . . . . . . . . . 1 . Sentry 46 | . . . . . 5 16 1 1 . . . . . . . 1 . . . 12 . 2 6 2 Demolisher 1 | . . . . . . . . . . . . . . . . . 1 . . . . . . . Specialist 2 | . . . . . . . . . . . . . . . . . . . . . . . 2 . Hunter 27 | . . . . . 3 3 . . . . . 2 1 2 4 3 . 2 . 1 2 . . 4 Programmer 26 | . . . . . . . 1 . . . . 1 1 6 . . . . . . . . 5 12 Heavy 2 | . . . . . . . . . . . . . . . . . . . . . . . 2 . Behemoth 2 | . . . . . . . . . . . . 1 . . . . . . . . . . . 1 Cetus Guard 2 | . . . . . . . . . . . . . . . . . . . . . 2 . . . Lightning 3 | . . . . . . . . . . . . . . . . . . . . . . . 3 . Executioner 2 | . . . . . . . . . . . . . . . . . 2 . . . . . . . Zionite 37 | . . . . . . . . . . 37 . . . . . . . . . . . . . . Z-Technician 5 | . . . . . . . . . . . 5 . . . . . . . . . . . . . Z-Light 9 | . . . . . . . . . . . 9 . . . . . . . . . . . . . Samaritan 2 | . . . . . . . . . . . . 2 . . . . . . . . . . . . Tinkerer 1 | . . . . . . . . . . 1 . . . . . . . . . . . . . . Assembler 2 | . . . . . . . . . . . 2 . . . . . . . . . . . . . Assembled 39 | . . . . 4 . . . . . . 35 . . . . . . . . . . . . . Golem 19 | . . . . . . . . . . . 19 . . . . . . . . . . . . . Surgeon 1 | . . . . . . . . . . 1 . . . . . . . . . . . . . . Thug 2 | . . . 1 . . . . . . . . . . . . . . . . 1 . . . . Butcher 1 | . . . . . . . . . . . . . . . . . . . . . 1 . . . Marauder 1 | . . . . . . . . . . 1 . . . . . . . . . . . . . . Mutant 1 | . . . . . . . . . . 1 . . . . . . . . . . . . . . Best Kill Streak 37 | . 5 2 . 2 13 8 1 3 2 18 37 3 10 8 2 3 8 6 1 4 4 1 11 9 Combat Bots Only 35 | . 3 2 . 2 9 5 1 3 2 1 35 3 7 7 2 3 6 6 1 4 4 1 11 6 Max Kills in Single Turn 27 | . 3 2 1 1 4 6 1 1 2 2 27 1 3 6 1 2 5 5 1 2 2 1 5 5 Gunslinging 1 | . . 1 . . . . . . 1 . . . . . . . . . . . . . . . Exploded 26 | . 3 . . . 3 2 . . . 1 26 . 3 5 . . 3 5 . . 1 . 3 1 Melee 1 | . . . . . . 1 . . . . . . . . . . . . . . . . . . Uniques/NPCs Destroyed 1 | . . . . . . . . . . 1 . . . . . . . . . . . . . . Imprinter (-7/Zion) Combat | -11 -10 -10 -10 -9 -8 -8 -7 -7 -7 -7 -7 -6 -6 -5 -5 -5 -5 -4 -4 -4 -4 -4 -4 -3 -------- Run | Scr Mat Min Exi Min Mat Sto Fac Low Low Zio Dee Pro Fac Fac Upp Upp War Pro Fac Ext Cet Arc Hub Res Damage Taken 30372 | . 532 241 . 447 1478 2026 208 73 226 1184 2071 1426 2270 668 437 382 207 371 58 2907 677 293 6197 5993 Core 3634 | . 71 34 . 106 149 184 18 17 . 64 159 248 352 77 29 . 66 50 21 311 86 . 701 891 Absorbed by Shields 504 | . . . . . . . . . . . . . . . . . 64 113 . 214 113 . . . Regen/Repaired (Parts) 199 | . . . . . 199 . . . . . . . . . . . . . . . . . . . Core Remaining (%) 45 | 100 . . . 15 . 39 . . . . . 27 58 . . . . 77 . . . . 2 . Volleys Fired 999 | . 33 18 23 16 70 92 7 8 23 74 160 35 57 31 12 13 8 11 8 88 14 19 76 103 Largest 3 | . 2 2 2 2 3 3 3 3 3 3 3 3 3 3 3 3 1 3 3 3 3 3 3 3 Hottest 261 | . 40 40 40 40 87 100 69 143 180 153 180 160 125 115 148 148 50 75 140 213 261 261 175 210 Shots Fired 2196 | . 53 36 46 31 194 211 19 24 62 221 188 65 87 58 31 39 32 45 14 236 38 54 179 233 Gun 1356 | . 40 36 46 31 161 182 18 24 55 221 156 24 19 . . 12 24 22 . 59 . 25 70 131 Cannon 768 | . . . . . 25 25 . . 7 . 23 36 51 57 31 27 6 19 14 177 36 29 103 102 Launcher 64 | . 13 . . . 8 4 1 . . . 9 1 13 1 . . 2 4 . . 2 . 6 . Special 8 | . . . . . . . . . . . . 4 4 . . . . . . . . . . . Kinetic 887 | . 40 36 46 31 186 207 18 14 16 74 16 . . . . . . . . 59 . 25 51 68 Thermal 802 | . . . . . . . . . 7 . 24 64 55 57 31 39 30 41 14 177 24 27 105 107 Explosive 64 | . 13 . . . 8 4 1 . . . 9 1 13 1 . . 2 4 . . 2 . 6 . Electromagnetic 443 | . . . . . . . . 10 39 147 139 . 19 . . . . . . . 12 2 17 58 Robot Hit Streak 24 | . 6 10 15 19 9 24 6 10 6 20 21 18 8 10 9 15 17 7 8 23 6 16 18 13 Robot Miss Streak 15 | . 2 2 1 3 5 4 1 5 3 6 15 2 5 10 2 2 5 14 1 6 3 2 5 4 Penetration Max 1 | . . . . . 1 . . . . . . . . . . . . . . 1 . . 1 1 Secondary Targets 17 | . . 1 . . 2 3 . . 1 5 . . . . . . . . . . . . 2 3 Max Gunslinging Chain 1 | . . 1 . . 1 1 . . 1 1 . . . . . . . . . . . . 1 1 Capacitor 14 | . . . . . . . . . . . . . . . . . . . . . . . . 14 Autonomous 81 | . . . . . . . . . . . . 5 . . . 12 24 22 . . . . . 18 Shots Hit Robots 1438 | . 33 27 38 18 117 156 14 15 33 130 136 50 51 33 16 27 16 30 6 149 22 42 119 160 Core Hits 1068 | . 30 12 10 7 70 85 6 4 12 53 224 19 78 29 8 13 51 28 2 66 34 12 143 72 Critical Kills 14 | . . . . . . 2 . . . . . . . . . . . . . 9 . 1 1 1 Critical Parts Destroyed 13 | . . . . . 3 1 . . . . . . . . . . . . . 3 . 2 3 1 Critical Strikes 39 | . . . . . 4 3 . . . 2 2 . 2 . . . . . . 12 . 3 5 6 Burn 2 | . . . . . . . . . . . . . 2 . . . . . . . . . . . Meltdown 3 | . . . . . . . . . . . . . . . . . . . . 3 . . . . Destroy 24 | . . . . . 3 3 . . . . . . . . . . . . . 9 . 3 4 2 Blast 1 | . . . . . 1 . . . . . . . . . . . . . . . . . . . Corrupt 9 | . . . . . . . . . . 2 2 . . . . . . . . . . . 1 4 Melee Attacks 134 | . 27 . . . 5 16 . . . 86 . . . . . . . . . . . . . . Impact 113 | . 27 . . . . . . . . 86 . . . . . . . . . . . . . . Slashing . | . . . . . . . . . . . . . . . . . . . . . . . . . Piercing 21 | . . . . . 5 16 . . . . . . . . . . . . . . . . . . Sneak Attacks 2 | . 2 . . . . . . . . . . . . . . . . . . . . . . . Combat Hostiles . | . . . . . . . . . . . . . . . . . . . . . . . . . Follow-up Attacks . | . . . . . . . . . . . . . . . . . . . . . . . . . Damage Inflicted 59956 | . 1403 337 500 241 2981 3827 230 343 969 2756 7125 2159 5901 2015 671 1018 2213 1737 235 5873 1217 1298 7932 6975 Guns 19474 | . 310 334 500 241 1749 2220 230 343 805 2589 2595 626 312 . . 349 431 457 . 1161 . 468 1128 2626 Cannons 20924 | . . . . . 252 356 . . 60 . 724 1327 1121 1465 671 669 . 514 235 4527 756 830 3593 3824 Explosions 18959 | . 991 . . . 980 1097 . . 104 167 3806 162 4413 540 . . 1782 766 . . 461 . 3165 525 Melee 191 | . 97 . . . . 94 . . . . . . . . . . . . . . . . . . Ramming 309 | . 5 3 . . . 60 . . . . . . . 10 . . . . . 185 . . 46 . Kinetic 11736 | . 310 334 500 241 2001 2576 230 114 180 743 181 . . . . . . . . 1161 . 468 728 1969 Thermal 22799 | . 85 . . . . . . . 164 167 814 1997 1347 1465 671 1018 431 971 235 4527 630 799 3648 3830 Explosive 18017 | . 906 . . . 980 1097 . . . . 3741 162 4242 540 . . 1782 766 . . 461 . 3165 175 Electromagnetic 6904 | . . . . . . . . 229 625 1846 2389 . 312 . . . . . . . 126 31 345 1001 Impact 97 | . 97 . . . . . . . . . . . . . . . . . . . . . . . Slashing . | . . . . . . . . . . . . . . . . . . . . . . . . . Piercing 94 | . . . . . . 94 . . . . . . . . . . . . . . . . . . Highest Corruption 38 | . . . . 3 7 21 . . . 24 29 30 4 3 3 3 3 . . . . . 38 13 Average Corruption 14 | . . . . 3 5 7 . . . 3 28 29 2 2 3 3 3 . . . . . 15 5 Corruption Purged . | . . . . . . . . . . . . . . . . . . . . . . . . . Corruption Blocked 8 | . . . . . . . . . . 8 . . . . . . . . . . . . . . Effects 484 | . . . . 6 5 51 . . . 5 225 50 11 14 31 19 . . . . . . 37 30 Message Errors 117 | . . . . 2 1 13 . . . 2 54 10 4 5 7 4 . . . . . . 7 8 Matter Fused 109 | . . . . 1 3 10 . . . 1 49 12 3 6 8 2 . . . . . . 6 8 Heat Flow Errors 58 | . . . . . . 6 . . . . 26 3 2 1 4 5 . . . . . . 6 5 Energy Discharges 51 | . . . . 1 1 6 . . . 1 21 4 . 1 3 5 . . . . . . 3 5 Parts Rejected 1 | . . . . . . . . . . . . . . . 1 . . . . . . . . . Data Loss (minor) 54 | . . . . . . 6 . . . . 25 7 . 1 4 3 . . . . . . 5 3 Data Loss (major) 20 | . . . . . . 2 . . . 1 10 3 1 . 2 . . . . . . . 1 . Misfires 24 | . . . . 1 . 2 . . . . 13 3 . . 1 . . . . . . . 4 . Alerts 14 | . . . . 1 . . . . . . 8 2 1 . 1 . . . . . . . 1 . Misdirections 4 | . . . . . . . . . . . . 2 . . . . . . . . . . 2 . Weapon Failures 32 | . . . . . . 6 . . . . 19 4 . . . . . . . . . . 2 1 Overload Shots . | . . . . . . . . . . . . . . . . . . . . . . . . . Overflow Damage 1117 | . 72 . . . 54 9 . . 7 . 49 74 117 40 21 26 7 95 . 73 17 10 131 315 Projectiles 624 | . . . . . 3 5 . . . . . 74 67 40 21 26 . 74 . 32 17 10 110 145 Explosions 425 | . 45 . . . 51 4 . . 7 . 49 . 50 . . . 7 21 . . . . 21 170 Melee 68 | . 27 . . . . . . . . . . . . . . . . . . 41 . . . . Knockbacks 11 | . 1 . . . 2 . . . . . . . . . . . . . . 4 . . . 4 Impact 4 | . 1 . . . . . . . . . . . . . . . . . . 3 . . . . Kinetic 6 | . . . . . 2 . . . . . . . . . . . . . . . . . . 4 Secondary 1 | . . . . . . . . . . . . . . . . . . . . 1 . . . . Self-Inflicted Damage 1454 | . 184 . . . 54 63 21 . . 22 135 8 466 135 . . 33 143 . . 14 . 123 53 Shots 51 | . 10 . . . 2 3 1 . . 1 4 1 13 2 . . 2 5 . . 1 . 5 1 Rammed 8 | . 3 . . . . 5 . . . . . . . . . . . . . . . . . . Targets Rammed 21 | . 3 1 . . . 6 . . . . . . . 1 . . . . . 6 . . 4 . Kicked 11 | . . . . . . . . . . . . . . 1 . . . . . 6 . . 4 . Crushed 2 | . . 1 . . . 1 . . . . . . . . . . . . . . . . . . Highest Temperature 493 | . 20 2 . 46 137 439 33 6 48 72 267 493 455 262 340 397 2 . 160 322 168 297 351 231 Average Temperature 73 | . 13 2 . 29 50 77 12 3 21 31 74 121 95 58 128 127 2 . 81 43 74 76 107 50 Received Heat Transfer 5247 | . 117 51 . 60 450 594 30 21 9 126 375 177 672 72 . 27 20 . 21 651 45 21 1378 330 Effects 15 | . . . . . . . . . . . . 4 3 . 2 3 . . . 2 . . 1 . Shutdowns 3 | . . . . . . . . . . . . 1 2 . . . . . . . . . . . Energy Bleed 1 | . . . . . . . . . . . . 1 . . . . . . . . . . . . Interference 7 | . . . . . . . . . . . . 1 . . 2 3 . . . 1 . . . . Matter Decay 1 | . . . . . . . . . . . . 1 . . . . . . . . . . . . Short Circuit 2 | . . . . . . . . . . . . . . . . . . . . 1 . . 1 . Damage (minor) 1 | . . . . . . . . . . . . . 1 . . . . . . . . . . . Siege Activations . | . . . . . . . . . . . . . . . . . . . . . . . . . Robots Corrupted 19 | . . . . . . . . 1 . 1 16 . . . . . . . . . . . . 1 Combat Hostiles 19 | . . . . . . . . 1 . 1 16 . . . . . . . . . . . . 1 Parts Fried 10 | . 4 . . . . . . 1 . . . . 1 . . . . . . . . . . 4 Impact Corruptions 6 | . 2 . . . . . . . . . . . . . . . . . . 4 . . . . Robots Melted 8 | . . . . . . . . . . . . . 1 . . . . 2 . 5 . . . . Combat Hostiles 8 | . . . . . . . . . . . . . 1 . . . . 2 . 5 . . . . Parts Melted 31 | . . . . . . . . . . 1 . 1 1 1 3 2 . 1 1 15 . . 3 2 Heat Transferred 17947 | . 50 . . . . . . . 224 112 462 1692 1376 909 550 894 536 867 174 4421 647 851 2025 2157 Parts Sabotaged 3 | . . . . . . . . . . . . . . . . . . . . . . . 3 . Parts Stolen 1 | . . . . . . . . . 1 . . . . . . . . . . . . . . . Parts Stripped . | . . . . . . . . . . . . . . . . . . . . . . . . . Power Chain Reactions 8 | . . . . . . . . . 1 4 1 . 1 . . . . . . . . . . 1 Missiles Intercepted . | . . . . . . . . . . . . . . . . . . . . . . . . . Alert | -11 -10 -10 -10 -9 -8 -8 -7 -7 -7 -7 -7 -6 -6 -5 -5 -5 -5 -4 -4 -4 -4 -4 -4 -3 ------- Run | Scr Mat Min Exi Min Mat Sto Fac Low Low Zio Dee Pro Fac Fac Upp Upp War Pro Fac Ext Cet Arc Hub Res Peak Influence 1372 | . 451 132 . 67 667 1000 468 . . . . . 898 628 . . . . 32 1372 1064 638 1116 682 Initial 768 | . . 107 . . . 230 264 . . . . . . 429 . . . . 2 . 768 425 32 537 Average 389 | . 252 59 . 26 325 593 338 . . . . . 458 435 . . . . 17 439 1012 344 688 494 Maximum Alert Level 4 | . 2 . . . 2 3 2 . . . . . 3 2 . . . . . 4 3 2 4 2 Low Security (%) 29 | 100 41 100 . 100 35 . . . . . . . 18 . . . . . 100 13 . 33 14 . Level 1 25 | . 40 . . . 24 17 73 . . . . . 8 28 . . . . . 63 . 22 15 27 Level 2 33 | . 18 . . . 40 59 26 . . . . . 66 71 . . . . . 1 . 44 14 72 Level 3 8 | . . . . . . 22 . . . . . . 6 . . . . . . 10 100 . 35 . Level 4 3 | . . . . . . . . . . . . . . . . . . . . 11 . . 19 . Level 5 . | . . . . . . . . . . . . . . . . . . . . . . . . . High Security . | . . . . . . . . . . . . . . . . . . . . . . . . . Max Security . | . . . . . . . . . . . . . . . . . . . . . . . . . Squads Dispatched 57 | . 2 1 . . 4 13 2 . . . . . 7 5 . . . . . 5 . . 10 8 Investigation 10 | . 2 . . . 1 3 . . . . . . 1 . . . . . . 2 . . 1 . Extermination 13 | . . . . . . . 2 . . . . . 1 2 . . . . . . . . 4 4 Reinforcement 14 | . . . . . 2 1 . . . . . . 2 2 . . . . . 2 . . 2 3 Assault 10 | . . 1 . . 1 . . . . . . . 3 . . . . . . 1 . . 3 1 Garrison 10 | . . . . . . 9 . . . . . . . 1 . . . . . . . . . . Intercept . | . . . . . . . . . . . . . . . . . . . . . . . . . Searches Triggered . | . . . . . . . . . . . . . . . . . . . . . . . . . Construction Impeded 5 | . . . . . 1 . . . . . . . . . . . . . . 2 . . 1 1 Haulers Reinforced 3 | . . . . . . . . . . . . . 2 . . . . . . . . . . 1 Active Scanning Responses . | . . . . . . . . . . . . . . . . . . . . . . . . . Cargo Convoy Interrupts 1 | . . . . . . . . . . . . . . . . . . . . . . . . 1 Stealth | -11 -10 -10 -10 -9 -8 -8 -7 -7 -7 -7 -7 -6 -6 -5 -5 -5 -5 -4 -4 -4 -4 -4 -4 -3 --------- Run | Scr Mat Min Exi Min Mat Sto Fac Low Low Zio Dee Pro Fac Fac Upp Upp War Pro Fac Ext Cet Arc Hub Res Distress Signals 12 | . 1 . . . . 2 . . . . . . 1 1 . . . . . 2 1 . 3 1 Communications Jammed 32 | . . . . . . . . . . . . . . . . . . . . . . 1 31 . Distress Signals 31 | . . . . . . . . . . . . . . . . . . . . . . 1 30 . Times Spotted 567 | . 20 10 . 9 40 43 3 5 15 49 52 7 37 21 4 7 37 11 1 71 10 7 57 51 Peak Tracking Total 37 | . 4 3 . 3 10 5 2 3 4 3 37 3 7 5 2 3 12 5 1 10 5 1 10 12 Tactical Retreats 25 | . . . . 1 . 1 . 2 1 1 5 . 3 2 . . 3 . . 2 . . 3 1 Traps | -11 -10 -10 -10 -9 -8 -8 -7 -7 -7 -7 -7 -6 -6 -5 -5 -5 -5 -4 -4 -4 -4 -4 -4 -3 ------- Run | Scr Mat Min Exi Min Mat Sto Fac Low Low Zio Dee Pro Fac Fac Upp Upp War Pro Fac Ext Cet Arc Hub Res Traps Triggered 9 | . 3 . . . 1 1 1 . . . . . . . . . . . . 1 . . . 2 Indirectly . | . . . . . . . . . . . . . . . . . . . . . . . . . Trap Hack Attempts . | . . . . . . . . . . . . . . . . . . . . . . . . . Triggered . | . . . . . . . . . . . . . . . . . . . . . . . . . Disarmed . | . . . . . . . . . . . . . . . . . . . . . . . . . Reprogrammed . | . . . . . . . . . . . . . . . . . . . . . . . . . Reused 4 | . . 2 . . . . . . . . . . . . . . . . . . . . 2 . Traps Extracted . | . . . . . . . . . . . . . . . . . . . . . . . . . Installed 11 | . . 3 . . . 2 . . . . . . . . . . . . . . . . 6 . Triggered 17 | . . 2 . . . . . . . . . . . . . . 13 . . . . . 2 . Most Traps Carried 6 | . . 5 2 2 2 2 . . . . . . . . . . . 6 6 6 6 6 6 . Machines | -11 -10 -10 -10 -9 -8 -8 -7 -7 -7 -7 -7 -6 -6 -5 -5 -5 -5 -4 -4 -4 -4 -4 -4 -3 ---------- Run | Scr Mat Min Exi Min Mat Sto Fac Low Low Zio Dee Pro Fac Fac Upp Upp War Pro Fac Ext Cet Arc Hub Res Machines Disabled 66 | . 7 . . . 1 4 3 . 1 1 2 . 29 2 . . 2 . . 4 2 2 4 2 Max in Single Turn 5 | . 3 . . . 1 1 3 . 1 1 1 . 5 1 . . 1 . . 1 1 1 1 1 Garrison Access 3 | . . . . . . . . . . . . . 1 1 . . . . . . . . 1 . Network Hub 1 | . . . . . . . . . . . . . . . . . . . . . . . 1 . Machines Sabotaged . | . . . . . . . . . . . . . . . . . . . . . . . . . Garrisons Compromised . | . . . . . . . . . . . . . . . . . . . . . . . . . Overloaded Fab Kills . | . . . . . . . . . . . . . . . . . . . . . . . . . Hacking | -11 -10 -10 -10 -9 -8 -8 -7 -7 -7 -7 -7 -6 -6 -5 -5 -5 -5 -4 -4 -4 -4 -4 -4 -3 --------- Run | Scr Mat Min Exi Min Mat Sto Fac Low Low Zio Dee Pro Fac Fac Upp Upp War Pro Fac Ext Cet Arc Hub Res Machines Accessed 61 | . 7 . 1 1 6 12 4 1 . . . . 4 2 . 1 . . 2 6 . 1 10 3 Terminals 44 | . 5 . . 1 3 11 3 . . . . . 3 . . . . . 1 6 . . 9 2 Fabricators 1 | . . . . . . . 1 . . . . . . . . . . . . . . . . . Repair Stations 1 | . . . . . 1 . . . . . . . . . . . . . . . . . . . Recycling Units 3 | . 2 . . . 1 . . . . . . . . . . . . . . . . . . . Scanalyzers 3 | . . . . . 1 . . . . . . . . 1 . . . . . . . . . 1 Garrison Access 5 | . . . . . . 1 . . . . . . 1 1 . . . . 1 . . . 1 . Total Hacks 190 | . 21 . 1 3 28 39 7 1 . . . . 9 5 . 1 . . 4 15 . 25 22 9 Successful 107 | . 10 . 1 1 19 22 2 1 . . . . 4 3 . 1 . . 1 4 . 25 11 2 Failed 83 | . 11 . . 2 9 17 5 . . . . . 5 2 . . . . 3 11 . . 11 7 Catastrophic 16 | . 1 . . . . 5 2 . . . . . . . . . . . . 4 . . 3 1 Database Lockouts . | . . . . . . . . . . . . . . . . . . . . . . . . . Manual 105 | . 17 . . 4 17 25 5 . . . . . 5 . . . . . . 2 1 . 21 8 Terminals 123 | . 16 . . 3 15 33 5 . . . . . 6 . . . . . 2 15 . . 20 8 Fabricators 2 | . . . . . . . 2 . . . . . . . . . . . . . . . . . Repair Stations 5 | . . . . . 5 . . . . . . . . . . . . . . . . . . . Recycling Units 8 | . 5 . . . 3 . . . . . . . . . . . . . . . . . . . Scanalyzers 10 | . . . . . 5 . . . . . . . . 4 . . . . . . . . . 1 Garrison Access 14 | . . . . . . 6 . . . . . . 3 1 . . . . 2 . . . 2 . Terminal Hacks 56 | . 3 . 1 1 3 12 . 1 . . . . 2 . . 1 . . 1 4 . 25 2 . Record 26 | . . . 1 . . . . . . . . . . . . . . . . . . 25 . . Part Schematic 1 | . . . . . . 1 . . . . . . . . . . . . . . . . . . Robot Analysis 4 | . 1 . . 1 1 1 . . . . . . . . . . . . . . . . . . Open Door 9 | . . . . . . 3 . 1 . . . . . . . 1 . . 1 3 . . . . Open DSF 1 | . . . . . . . . . . . . . 1 . . . . . . . . . . . Level Access Points 1 | . . . . . . 1 . . . . . . . . . . . . . . . . . . Branch Access Points 1 | . . . . . 1 . . . . . . . . . . . . . . . . . . . Terminal Index 5 | . 1 . . . 1 1 . . . . . . 1 . . . . . . . . . 1 . Alert Level 2 | . . . . . . 1 . . . . . . . . . . . . . . . . 1 . Unreport Threat 4 | . . . . . . 3 . . . . . . . . . . . . . 1 . . . . Locate Traps 1 | . 1 . . . . . . . . . . . . . . . . . . . . . . . Zone Layout 1 | . . . . . . 1 . . . . . . . . . . . . . . . . . . Fabricator Hacks 1 | . . . . . . . 1 . . . . . . . . . . . . . . . . . Build 1 | . . . . . . . 1 . . . . . . . . . . . . . . . . . Repair Station Hacks 4 | . . . . . 4 . . . . . . . . . . . . . . . . . . . Scan Component 2 | . . . . . 2 . . . . . . . . . . . . . . . . . . . Repair 2 | . . . . . 2 . . . . . . . . . . . . . . . . . . . Recycling Unit Hacks 4 | . 3 . . . 1 . . . . . . . . . . . . . . . . . . . Retrieve Components 4 | . 3 . . . 1 . . . . . . . . . . . . . . . . . . . Scanalyzer 7 | . . . . . 5 . . . . . . . . 2 . . . . . . . . . . Insert Component 4 | . . . . . 2 . . . . . . . . 2 . . . . . . . . . . Analyze 3 | . . . . . 3 . . . . . . . . . . . . . . . . . . . Garrison Access Hacks 2 | . . . . . . . . . . . . . 1 1 . . . . . . . . . . Seal Access 2 | . . . . . . . . . . . . . 1 1 . . . . . . . . . . Unauthorized Hacks 33 | . 4 . . . 6 10 1 . . . . . 1 . . . . . . . . . 9 2 Terminals 26 | . 2 . . . 5 7 1 . . . . . 1 . . . . . . . . . 8 2 Track 1 | . . . . . . . . . . . . . . . . . . . . . . . 1 . Assimilate 2 | . . . . . 1 1 . . . . . . . . . . . . . . . . . . Botnet 17 | . 1 . . . 3 4 1 . . . . . . . . . . . . . . . 6 2 Disrupt 1 | . . . . . . 1 . . . . . . . . . . . . . . . . . . Operators 5 | . 1 . . . 1 1 . . . . . . 1 . . . . . . . . . 1 . Fabricators . | . . . . . . . . . . . . . . . . . . . . . . . . . Repair Stations . | . . . . . . . . . . . . . . . . . . . . . . . . . Recycling Units 3 | . 2 . . . 1 . . . . . . . . . . . . . . . . . . . Tunnel 3 | . 2 . . . 1 . . . . . . . . . . . . . . . . . . . Scanalyzers . | . . . . . . . . . . . . . . . . . . . . . . . . . Garrison Access 4 | . . . . . . 3 . . . . . . . . . . . . . . . . 1 . Redirect 1 | . . . . . . 1 . . . . . . . . . . . . . . . . . . Reprogram 1 | . . . . . . 1 . . . . . . . . . . . . . . . . . . Watchers 1 | . . . . . . 1 . . . . . . . . . . . . . . . . . . Jam 1 | . . . . . . . . . . . . . . . . . . . . . . . 1 . Data Cores Recovered . | . . . . . . . . . . . . . . . . . . . . . . . . . Used . | . . . . . . . . . . . . . . . . . . . . . . . . . Hacking Detections 43 | . 5 . . 1 3 7 4 . . . . . 4 1 . . . . 1 4 . . 10 3 Full Trace Events 5 | . . . . . . 2 . . . . . . 1 . . . . . . 2 . . . . Feedback Events . | . . . . . . . . . . . . . . . . . . . . . . . . . Feedback Blocked . | . . . . . . . . . . . . . . . . . . . . . . . . . Robot Schematics Acquired . | . . . . . . . . . . . . . . . . . . . . . . . . . Robots Built 3 | . . . . . . . 3 . . . . . . . . . . . . . . . . . Authchips . | . . . . . . . . . . . . . . . . . . . . . . . . . Time 67 | . . . . . . . 67 . . . . . . . . . . . . . . . . . Total Robot Build Rating 12 | . . . . . . . 12 . . . . . . . . . . . . . . . . . Part Schematics Acquired 3 | . . . . . 2 1 . . . . . . . . . . . . . . . . . . Parts Built . | . . . . . . . . . . . . . . . . . . . . . . . . . Authchips . | . . . . . . . . . . . . . . . . . . . . . . . . . Time . | . . . . . . . . . . . . . . . . . . . . . . . . . Total Part Build Rating . | . . . . . . . . . . . . . . . . . . . . . . . . . Parts Repaired 2 | . . . . . 2 . . . . . . . . . . . . . . . . . . . Time 52 | . . . . . 52 . . . . . . . . . . . . . . . . . . . Parts Recycled . | . . . . . . . . . . . . . . . . . . . . . . . . . Recycled Matter . | . . . . . . . . . . . . . . . . . . . . . . . . . Retrieved Matter . | . . . . . . . . . . . . . . . . . . . . . . . . . Retrieved Components 13 | . 10 . . . 3 . . . . . . . . . . . . . . . . . . . Parts Scanalyzed 3 | . . . . . 2 . . . . . . . . 1 . . . . . . . . . . Part Schematics Acquired 2 | . . . . . 2 . . . . . . . . . . . . . . . . . . . Parts Damaged . | . . . . . . . . . . . . . . . . . . . . . . . . . Bothacking | -11 -10 -10 -10 -9 -8 -8 -7 -7 -7 -7 -7 -6 -6 -5 -5 -5 -5 -4 -4 -4 -4 -4 -4 -3 ------------ Run | Scr Mat Min Exi Min Mat Sto Fac Low Low Zio Dee Pro Fac Fac Upp Upp War Pro Fac Ext Cet Arc Hub Res Used RIF Installer . | . . . . . . . . . . . . . . . . . . . . . . . . . Robots Hacked . | . . . . . . . . . . . . . . . . . . . . . . . . . Non-combat . | . . . . . . . . . . . . . . . . . . . . . . . . . Combat . | . . . . . . . . . . . . . . . . . . . . . . . . . Robot Hacks Applied . | . . . . . . . . . . . . . . . . . . . . . . . . . Relay Couplers Released 5 | . . . . . . . . . . . . . 2 . . . . . . . . . 3 . Machine Destruction 5 | . . . . . . . . . . . . . 2 . . . . . . . . . 3 . Fabnet Peak Effective % . | . . . . . . . . . . . . . . . . . . . . . . . . . Robots Rewired 41 | . . . 2 . . . . . 4 . . . . . . . . . . 35 . . . . Allies Hacked . | . . . . . . . . . . . . . . . . . . . . . . . . . Hacks Repelled . | . . . . . . . . . . . . . . . . . . . . . . . . . Allies | -11 -10 -10 -10 -9 -8 -8 -7 -7 -7 -7 -7 -6 -6 -5 -5 -5 -5 -4 -4 -4 -4 -4 -4 -3 -------- Run | Scr Mat Min Exi Min Mat Sto Fac Low Low Zio Dee Pro Fac Fac Upp Upp War Pro Fac Ext Cet Arc Hub Res Total Allies 60 | . . 4 2 1 1 2 3 . 4 . . . . . . . . . . 38 5 . . . Largest Group 23 | . . 3 4 5 1 2 3 2 5 3 . . . . . . . . . 23 7 7 6 . Highest-Rated Group 1109 | . . 63 63 92 21 25 90 60 143 93 . . . . . . . . . 1109 536 536 509 . Highest-Rated Ally 159 | . . 31 31 31 21 15 30 30 31 31 . . . . . . . . . 159 159 96 96 . Total Orders 31 | . . 2 . 2 . 2 . 2 10 4 . . . . . . . . . 7 . 2 . . STAY 13 | . . 1 . 1 . . . 1 2 2 . . . . . . . . . 5 . 1 . . FOLLOW 10 | . . 1 . 1 . . . 1 2 2 . . . . . . . . . 2 . 1 . . EXPLORE 8 | . . . . . . 2 . . 6 . . . . . . . . . . . . . . . Ally Attacks 496 | . . 19 2 31 4 4 11 11 62 52 . . . . . . . . . 215 20 11 54 . Total Damage 14550 | . . 161 43 519 65 87 331 305 1204 829 . . . . . . . . . 7040 950 728 2288 . Kills 94 | . . 4 1 10 . . 4 1 10 8 . . . . . . . . . 39 4 3 10 . Allies Corrupted 1 | . . . . . . . . . . . . . . . . . . . . . . . 1 . Allies Melted 1 | . . . . . . . . . 1 . . . . . . . . . . . . . . . Intel | -11 -10 -10 -10 -9 -8 -8 -7 -7 -7 -7 -7 -6 -6 -5 -5 -5 -5 -4 -4 -4 -4 -4 -4 -3 ------- Run | Scr Mat Min Exi Min Mat Sto Fac Low Low Zio Dee Pro Fac Fac Upp Upp War Pro Fac Ext Cet Arc Hub Res Robot Analysis Total 4 | . 1 . . 1 1 1 . . . . . . . . . . . . . . . . . . Derelict Logs Recovered 13 | . . 1 . 2 . . . 1 2 2 . 1 . . 2 1 . 1 . . . . . . Drone Launches 8 | . . . . . . 2 . . 6 . . . . . . . . . . . . . . . Drone Recoveries 4 | . . . . . . . . . 4 . . . . . . . . . . . . . . . Decoded 0b10 Intel 30 | . . . . . . . . . . . . . . . . . . . . . . . . 30 Garrisons 1 | . . . . . . . . . . . . . . . . . . . . . . . . 1 Patrols 12 | . . . . . . . . . . . . . . . . . . . . . . . . 12 Reinforcements 6 | . . . . . . . . . . . . . . . . . . . . . . . . 6 Guards 11 | . . . . . . . . . . . . . . . . . . . . . . . . 11 Exploration | -11 -10 -10 -10 -9 -8 -8 -7 -7 -7 -7 -7 -6 -6 -5 -5 -5 -5 -4 -4 -4 -4 -4 -4 -3 ------------- Run | Scr Mat Min Exi Min Mat Sto Fac Low Low Zio Dee Pro Fac Fac Upp Upp War Pro Fac Ext Cet Arc Hub Res Turns Passed 39876 | 86 2031 1553 1415 1021 998 1305 529 1474 1583 5392 4431 856 1194 1713 1566 1172 896 1878 401 2210 316 1807 1878 2171 Spaces Moved 16291 | 49 780 612 552 317 415 552 277 884 886 2007 1697 419 414 595 755 741 544 630 223 1118 126 196 959 543 Core 613 | 6 . . . . . . . . . 504 41 . . . . . . . . . . 60 . 2 Treads 7938 | 43 780 612 552 317 415 552 277 884 886 1313 1231 . . . . . . . . . . . 35 41 Legs 7626 | . . . . . . . . . . 190 425 419 414 595 755 741 544 630 223 1118 126 136 923 387 Wheels 114 | . . . . . . . . . . . . . . . . . . . . . . . 1 113 Hover . | . . . . . . . . . . . . . . . . . . . . . . . . . Flight . | . . . . . . . . . . . . . . . . . . . . . . . . . Fastest Speed 50 | 50 160 240 240 240 156 160 160 160 160 50 130 130 136 118 186 118 116 118 115 120 118 110 123 115 Average Speed 190 | 150 171 240 240 240 158 160 160 160 160 236 204 130 199 186 186 151 117 164 164 125 118 843 158 228 Slowest Speed 2850 | 160 240 240 240 320 160 240 160 160 160 1200 1650 130 270 189 186 186 118 176 175 178 123 2850 490 2350 Overloaded Moves . | . . . . . . . . . . . . . . . . . . . . . . . . . Propulsion Burnouts . | . . . . . . . . . . . . . . . . . . . . . . . . . Robots Hopped . | . . . . . . . . . . . . . . . . . . . . . . . . . Cave-ins Triggered 2 | . . . . 1 . . . . . 1 . . . . . . . . . . . . . . Exploration Rate (%) 62 | 4 95 99 86 55 44 88 7 81 99 81 91 54 14 21 85 91 73 65 6 87 48 82 86 15 Regions Visited 24 Branch Regions 17 Pre-discovered Areas 8 | . 2 . 1 1 1 . . . . 1 . 1 . . . 1 . . . . . . . . Known Exits Taken 16 | . . . . . 1 1 1 1 1 . . 1 . 1 1 1 1 1 1 1 1 1 1 . Unknown Exits Taken 8 | 1 1 1 1 1 . . . . . 1 1 . 1 . . . . . . . . . . . Scrap Searched 23 | . . 1 . 2 . . . 3 3 2 . 3 . . 4 2 . 3 . . . . . . Spaces Dug 125 | . 20 . . . 32 9 30 . 1 2 . . 6 8 1 1 3 3 3 2 . . 3 1 Terrain Destroyed 1266 | . 102 . . . 58 130 30 . 4 7 91 28 235 56 13 12 58 120 6 52 71 1 134 58 Melee 20 | . 7 . . . 3 8 . . . 2 . . . . . . . . . . . . . . Projectile 233 | . . . . . 6 1 . . 3 . . 10 18 16 13 12 6 12 6 52 1 1 42 34 AOE 1013 | . 95 . . . 49 121 30 . 1 5 91 18 217 40 . . 52 108 . . 70 . 92 24 Terrain Rammed . | . . . . . . . . . . . . . . . . . . . . . . . . . Walls Destroyed . | . . . . . . . . . . . . . . . . . . . . . . . . . Machines Disabled . | . . . . . . . . . . . . . . . . . . . . . . . . . Actions | -11 -10 -10 -10 -9 -8 -8 -7 -7 -7 -7 -7 -6 -6 -5 -5 -5 -5 -4 -4 -4 -4 -4 -4 -3 --------- Run | Scr Mat Min Exi Min Mat Sto Fac Low Low Zio Dee Pro Fac Fac Upp Upp War Pro Fac Ext Cet Arc Hub Res Total 23103 | 58 1366 661 599 547 604 762 347 925 1002 2337 2468 671 690 1149 893 772 789 1452 250 1736 259 310 1160 1296 Wait 4410 | . 486 16 . 209 63 9 51 24 19 103 488 193 188 485 116 . 215 773 . 148 113 76 63 572 Move 16267 | 48 779 611 551 316 414 551 276 883 885 2006 1696 418 413 594 754 740 543 629 222 1117 125 195 958 543 Hop . | . . . . . . . . . . . . . . . . . . . . . . . . . Pick Up 244 | 4 17 6 7 2 20 25 4 2 5 22 37 5 7 10 . 3 4 9 6 15 1 3 11 19 Fast Attach 122 | 6 3 . 2 . 3 12 1 . 2 14 18 4 4 6 6 3 6 1 2 5 . 2 7 15 Attach 132 | . 1 2 . 3 12 13 3 2 2 9 18 3 4 3 . 3 1 2 1 9 4 3 17 17 Detach 79 | . . . . . . 2 . . . . 17 4 2 9 . 2 4 8 6 3 . 7 4 11 Swap 111 | . 10 1 . . 9 13 2 4 7 5 8 6 11 2 . 3 1 4 1 2 2 2 9 9 Drop 174 | . 7 3 6 1 8 21 3 2 6 18 26 3 4 8 5 5 7 10 4 12 . 3 5 7 Fire 999 | . 33 18 23 16 70 92 7 8 23 74 160 35 57 31 12 13 8 11 8 88 14 19 76 103 Melee 134 | . 27 . . . 5 16 . . . 86 . . . . . . . . . . . . . . Ram . | . . . . . . . . . . . . . . . . . . . . . . . . . Kick 11 | . . . . . . . . . . . . . . 1 . . . . . 6 . . 4 . Crush 10 | . 3 1 . . . 6 . . . . . . . . . . . . . . . . . . Escape Stasis 5 | . . . . . . . . . . . . . . . . . . . . 5 . . . . Rewire 394 | . . . 10 . . . . . 53 . . . . . . . . 5 . 326 . . . . Trap 11 | . . 3 . . . 2 . . . . . . . . . . . . . . . . 6 . Miscellaneous . | . . . . . . . . . . . . . . . . . . . . . . . . . Route ------- -11/Scrapyard -10/Materials (discovered 4 exits: [*Mat x2] / [*Min x2]) -10/Mines (discovered 3 exits: [*Mat x2] / *Exi) -10/Exiles -9/Mines -8/Materials (discovered 3 exits: *Fac / *Sto x2) -8/Storage -7/Factory -7/Lower Caves -7/Lower Caves (discovered 2 exits: *Fac / *Zio) -7/Zion (discovered 2 exits: [*Dee] / Pro) -7/Deep Caves -6/Proximity Caves -6/Factory (discovered 2 exits: *Fac / Low) -5/Factory (discovered 2 exits: *Fac / *Upp) -5/Upper Caves -5/Upper Caves (discovered 2 exits: *Fac / *War) -5/Warlord -4/Proximity Caves -4/Factory -4/Extension (discovered 2 exits: *Res / *Cet) -4/Cetus -4/Archives (discovered 3 exits: *Res / *Hub x2) -4/Hub_04(d) (discovered 4 exits: *Res x4) -3/Research History --------- Turn | Location | Event 8 | -11/Scrapyard | Discovered new exit (range 15) 87 | -11/Scrapyard | Entered Materials 211 | -10/Materials | Discovered new exit (range 7) 305 | -10/Materials | Build established: Mutant 325 | -10/Materials | Discovered new exit (range 10) 363 | -10/Materials | Discovered new exit (range 13) 718 | -10/Materials | Discovered new exit (range 5) 2118 | -10/Materials | Entered Mines 2200 | -10/Mines | Assisted by bots powering up and referring to "LRC-V3" 2830 | -10/Mines | Discovered new exit (range 7) 2893 | -10/Mines | Discovered new exit (range 10) 3231 | -10/Mines | Found a hidden stash of uninstalled traps 3272 | -10/Mines | Deemed a non-threat by the Exiles lab entrance 3272 | -10/Mines | Discovered new exit (range 5) 3342 | -10/Mines | Learned Materials terminal intel 3384 | -10/Mines | Met a Derelict testing a Signal Generator 3671 | -10/Mines | Entered Exiles 3671 | -10/Exiles | Found Exiles lab destroyed 3671 | -10/Exiles | Accompanied by 3 allies 4468 | -10/Exiles | Learned location of Zion (-7) 4961 | -10/Exiles | Build established: Commander-Mutant 5062 | -10/Exiles | Discovered new exit (range 12) 5086 | -10/Exiles | Entered Mines 5086 | -9/Mines | Accompanied by 4 allies 5089 | -9/Mines | Received a Mining Laser from a helpful Derelict 5177 | -9/Mines | Assembled infested the area 5182 | -9/Mines | Assisted by a Guerilla fighting off Assembled 5570 | -9/Mines | Build established: Mutant 5690 | -9/Mines | Crushed by falling debris 5690 | -9/Mines | Core integrity fell below 50% 5721 | -9/Mines | Lost 3 parts (1n1u1w) 5734 | -9/Mines | Core integrity fell below 20% 5880 | -9/Mines | Learned Materials emergency access door positions 6046 | -9/Mines | Learned location of Storage (-8) 6060 | -9/Mines | Discovered new exit (range 9) 6107 | -9/Mines | Entered Materials 6107 | -8/Materials | Accompanied by 1 ally 6107 | -8/Materials | Evolved 4 slots: Propulsion x2, Utility x1, Weapon x1 6109 | -8/Materials | Loaded intel: 12 terminal locations 6110 | -8/Materials | Discovered new exit (range 14) 6252 | -8/Materials | Repaired Lgt. Treads 6279 | -8/Materials | Repaired Lgt. Treads 6350 | -8/Materials | Identified exit to Storage 6760 | -8/Materials | Destroyed 9 combat bots 6907 | -8/Materials | First assault squad dispatched 6921 | -8/Materials | Discovered new exit (range 16) 6941 | -8/Materials | Build established: Hacker-Gunner 7022 | -8/Materials | Lost 7 parts (4n1u2w) 7105 | -8/Materials | Entered Storage 7150 | -8/Storage | Garrison activated, responded to threat 7340 | -8/Storage | Lost 6 parts (3n1u2w) 7369 | -8/Storage | Found Prototype Launcher 7457 | -8/Storage | Identified Scatter Rocket Array 7587 | -8/Storage | Build established: Scavenger-Mutant 7587 | -8/Storage | Identified exit to Factory 7630 | -8/Storage | Garrison activated, responded to threat 7867 | -8/Storage | Core integrity fell below 50% 8227 | -8/Storage | Build established: Scavenger-Gunner 8407 | -8/Storage | System corruption reached 10% 8410 | -8/Storage | Entered Factory 8410 | -7/Factory | Evolved 2 slots: Utility x2 8530 | -7/Factory | Discovered new exit (range 5) 8536 | -7/Factory | Identified exit to Lower Caves 8801 | -7/Factory | Fabricated L-41 Fighter? 8939 | -7/Factory | Entered Lower Caves 8939 | -7/Lower Caves | Accompanied by 2 allies 8960 | -7/Lower Caves | Build established: Scavenger-Skirmisher 9860 | -7/Lower Caves | Attracted the attention of an 0b10 checkpoint 10081 | -7/Lower Caves | Learned Factory emergency access door positions 10132 | -7/Lower Caves | Discovered new exit (range 4) 10148 | -7/Lower Caves | Identified exit to Lower Caves 10413 | -7/Lower Caves | Entered another Lower Caves area 10413 | -7/Lower Caves | Accompanied by 1 ally 10489 | -7/Lower Caves | Discovered new exit (range 5) 10498 | -7/Lower Caves | Encountered a Warlord checkpoint 10498 | -7/Lower Caves | Identified exit to Factory 10581 | -7/Lower Caves | Attacked by a delusional Derelict stockpiling Unaware 11150 | -7/Lower Caves | Discovered new exit (range 55) 11222 | -7/Lower Caves | Drone Bay stolen by Master Thief 11472 | -7/Lower Caves | Learned location of 1 exit from Factory 11517 | -7/Lower Caves | Build established: Scavenger-Mutant 11846 | -7/Lower Caves | Build established: Scavenger-Skirmisher 11993 | -7/Lower Caves | Identified exit to Zion 11996 | -7/Lower Caves | Entered Zion 11996 | -7/Zion | Accompanied by 3 allies 12255 | -7/Zion | System corruption cleaned by Quarantine Array 12459 | -7/Zion | Identified exit to Proximity Caves 12714 | -7/Zion | Found GAL Module 13439 | -7/Zion | Build established: Scavenger-Mutant 13778 | -7/Zion | Build established: Mutant 14483 | -7/Zion | Build established: Scavenger-Skirmisher 16695 | -7/Zion | Learned location of Data Miner (-6) 16715 | -7/Zion | Attacked by Zionites 16715 | -7/Zion | Spotted SH-WJW(B) 16731 | -7/Zion | Destroyed SH-WJW(B) 16733 | -7/Zion | Spotted G4-ST3(B) 16749 | -7/Zion | Allies destroyed G4-ST3(B) 16867 | -7/Zion | Destroyed Imprinter 17373 | -7/Zion | Discovered new exit (range 5) 17376 | -7/Zion | Crushed by falling debris 17376 | -7/Zion | System corruption reached 10% 17386 | -7/Zion | Saw the warning signs outside the Deep Caves entrance 17388 | -7/Zion | Entered Deep Caves 17407 | -7/Deep Caves | Lost 5 parts (1n3u1w) 17594 | -7/Deep Caves | Build established: Scavenger-Mutant 17837 | -7/Deep Caves | Z-Facility disabled 17905 | -7/Deep Caves | Lost 7 parts (1p3n1u2w) 18142 | -7/Deep Caves | Found Prototype Protection 18142 | -7/Deep Caves | Identified Zio. Heavy Carapace 18145 | -7/Deep Caves | Found Prototype Protection 18145 | -7/Deep Caves | Identified Zio. Weapon Casing 18203 | -7/Deep Caves | Found Zio. Heavy Carapace 18234 | -7/Deep Caves | Found Zio. Heavy Carapace 18596 | -7/Deep Caves | Build established: Scavenger-Tank 18667 | -7/Deep Caves | Found Zio. Weapon Casing 18950 | -7/Deep Caves | Discovered new exit (range 6) 19133 | -7/Deep Caves | Build established: Scavenger-Mutant 19418 | -7/Deep Caves | Spotted as-86217 19454 | -7/Deep Caves | Destroyed as-86217 19480 | -7/Deep Caves | Lost 4 parts (1p2u1w) 19526 | -7/Deep Caves | Triggered Deep Caves wall 19526 | -7/Deep Caves | Destroyed AS-84521 19536 | -7/Deep Caves | Spotted AS-63085 19538 | -7/Deep Caves | Destroyed AS-63085 19551 | -7/Deep Caves | Destroyed 35 combat bots 19650 | -7/Deep Caves | Exposed GOLEM chamber 19776 | -7/Deep Caves | Spotted as-51189 19794 | -7/Deep Caves | Destroyed as-51189 19820 | -7/Deep Caves | Lost 3 parts (1u2w) 19827 | -7/Deep Caves | Found GOLEM Unit 19990 | -7/Deep Caves | Found Prototype Energy Gun 19990 | -7/Deep Caves | Identified AWS/Thermal 20536 | -7/Deep Caves | Build established: Golem 21275 | -7/Deep Caves | Found GOLEM Unit 21280 | -7/Deep Caves | Found GOLEM Unit 21339 | -7/Deep Caves | Found GOLEM Unit 21819 | -7/Deep Caves | Entered Proximity Caves 21865 | -6/Proximity Caves | System corruption reached 30% 22451 | -6/Proximity Caves | Spotted B-75 Beast 22467 | -6/Proximity Caves | Core integrity fell below 50% 22513 | -6/Proximity Caves | Destroyed B-75 Beast 22538 | -6/Proximity Caves | Lost 3 parts (2p1w) 22666 | -6/Proximity Caves | Discovered exit to Factory (range 5) 22675 | -6/Proximity Caves | Entered Factory 22675 | -6/Factory | Evolved 2 slots: Power x1, Utility x1 22676 | -6/Factory | Identified exit to Lower Caves 22993 | -6/Factory | Discovered new exit (range 8) 23025 | -6/Factory | First assault squad dispatched 23195 | -6/Factory | Destroyed 7 combat bots 23490 | -6/Factory | Lost 5 parts (3n2u) 23514 | -6/Factory | Found Scatter Rocket Array 23523 | -6/Factory | Found Scatter Rocket Array 23869 | -6/Factory | Entered another Factory area 23869 | -5/Factory | Evolved 2 slots: Propulsion x1, Utility x1 23870 | -5/Factory | Identified exit to Upper Caves 24432 | -5/Factory | Discovered new exit (range 16) 24651 | -5/Factory | Identified exit to Factory 24832 | -5/Factory | Garrison activated, responded to threat 24976 | -5/Factory | Destroyed 7 combat bots 25312 | -5/Factory | Build established: Mutant 25582 | -5/Factory | Entered Upper Caves 25749 | -5/Upper Caves | Build established: Skirmisher 25801 | -5/Upper Caves | Learned Factory terminal intel 26027 | -5/Upper Caves | Learned Factory emergency access door positions 26278 | -5/Upper Caves | Discovered new exit (range 9) 26386 | -5/Upper Caves | Identified exit to Upper Caves 26876 | -5/Upper Caves | Build established: Mutant 27148 | -5/Upper Caves | Entered another Upper Caves area 27263 | -5/Upper Caves | Discovered exit to Factory (range 8) 27970 | -5/Upper Caves | Build established: Skirmisher 28133 | -5/Upper Caves | Discovered new exit (range 20) 28139 | -5/Upper Caves | Attracted the attention of an 0b10 checkpoint 28314 | -5/Upper Caves | Identified exit to Warlord 28320 | -5/Upper Caves | Entered Warlord 28345 | -5/Warlord | Discovered new exit (range 20) 28359 | -5/Warlord | System corruption cleaned by Quarantine Array 28744 | -5/Warlord | Met Warlord 28751 | -5/Warlord | Warlord's base attacked by MAIN.C 28764 | -5/Warlord | Found Prototype Reactor 28764 | -5/Warlord | Identified Vortex Chain Reactor 28771 | -5/Warlord | Found Prototype Device 28771 | -5/Warlord | Identified Exp. Cloaking Device 28782 | -5/Warlord | Found Prototype Processor 29101 | -5/Warlord | Warlord forces counterattacked 29115 | -5/Warlord | Spotted Executioner 29174 | -5/Warlord | Spotted Executioner 29175 | -5/Warlord | Spotted Executioner 29175 | -5/Warlord | Destroyed Executioner 29179 | -5/Warlord | Destroyed Executioner 29215 | -5/Warlord | Identified exit to Proximity Caves 29216 | -5/Warlord | Entered Proximity Caves 29765 | -4/Proximity Caves | Spotted B-86 Titan 30193 | -4/Proximity Caves | Build established: Golem 30976 | -4/Proximity Caves | Learned Research security intel 31083 | -4/Proximity Caves | Discovered exit to Factory (range 6) 31094 | -4/Proximity Caves | Entered Factory 31094 | -4/Factory | Evolved 2 slots: Propulsion x1, Utility x1 31095 | -4/Factory | Identified exit to Extension 31095 | -4/Factory | Identified Exp. Target Analyzer 31097 | -4/Factory | Loaded intel: 27 terminal locations 31495 | -4/Factory | Entered Extension 31715 | -4/Extension | Lost 3 parts (1n1u1w) 31975 | -4/Extension | Build established: Commander-Skirmisher 32575 | -4/Extension | Rescued A7 32986 | -4/Extension | Spotted B-86 Titan 33001 | -4/Extension | Spotted B-86 Titan 33003 | -4/Extension | Allies destroyed B-86 Titan 33018 | -4/Extension | Allies destroyed B-86 Titan 33079 | -4/Extension | Rescued a captive Derelict 33091 | -4/Extension | Rescued a captive Derelict 33245 | -4/Extension | First assault squad dispatched 33492 | -4/Extension | Rescued a captive Derelict 33678 | -4/Extension | Discovered new exit (range 10) 33679 | -4/Extension | Discovered new exit (range 6) 33686 | -4/Extension | Identified exit to Cetus 33699 | -4/Extension | Disrupted transfer network 33705 | -4/Extension | Entered Cetus 33705 | -4/Cetus | Accompanied by 7 allies (A7) 33710 | -4/Cetus | Acquired a Cetus Manufacturing Module code from A7 33727 | -4/Cetus | Spotted Cetus Guard 33727 | -4/Cetus | Spotted Cetus Guard 33729 | -4/Cetus | Spotted Cetus Guard 33729 | -4/Cetus | Spotted Cetus Guard 33733 | -4/Cetus | Destroyed Cetus Guard 33743 | -4/Cetus | Destroyed Cetus Guard 33745 | -4/Cetus | Allies destroyed Cetus Guard 33747 | -4/Cetus | Allies destroyed Cetus Guard 33795 | -4/Cetus | Extracted ID and sensor layout for unrecognized location from A7's data core 33836 | -4/Cetus | Lost 3 parts (1p2u) 33838 | -4/Cetus | Started Cetus Manufacturing Module 33863 | -4/Cetus | Manufactured an Enhanced Grunt 33888 | -4/Cetus | Manufactured an Enhanced Grunt 33913 | -4/Cetus | Manufactured an Enhanced Grunt 33938 | -4/Cetus | Manufactured an Enhanced Grunt 33963 | -4/Cetus | Manufactured an Enhanced Grunt 33995 | -4/Cetus | Discovered new exit (range 15) 34011 | -4/Cetus | Identified exit to Archives 34021 | -4/Cetus | Entered Archives 34021 | -4/Archives | Accompanied by 7 allies 34129 | -4/Archives | Unable to access archive contents 34135 | -4/Archives | Discovered new exit (range 16) 34142 | -4/Archives | Unable to access archive contents 34149 | -4/Archives | Discovered new exit (range 16) 34156 | -4/Archives | Unable to access archive contents 34162 | -4/Archives | Discovered new exit (range 16) 34540 | -4/Archives | Build established: Commander-Gunner 34901 | -4/Archives | Build established: Commander-Golem 35794 | -4/Archives | Identified exit to Hub_04(d) 35828 | -4/Archives | Entered Hub_04(d) 35828 | -4/Hub_04(d) | Accompanied by 6 allies 36199 | -4/Hub_04(d) | Discovered new exit (range 8) 36243 | -4/Hub_04(d) | Identified exit to Research 36571 | -4/Hub_04(d) | Discovered exit to Research (range 13) 36578 | -4/Hub_04(d) | First assault squad dispatched 36724 | -4/Hub_04(d) | Discovered exit to Research (range 3) 36869 | -4/Hub_04(d) | Build established: Scavenger-Golem 36979 | -4/Hub_04(d) | Network Hub disabled 37004 | -4/Hub_04(d) | Spotted Lightning 37009 | -4/Hub_04(d) | Spotted Lightning 37018 | -4/Hub_04(d) | Core integrity fell below 50% 37020 | -4/Hub_04(d) | Spotted Lightning 37043 | -4/Hub_04(d) | Destroyed Lightning 37043 | -4/Hub_04(d) | Destroyed Lightning 37059 | -4/Hub_04(d) | System corruption reached 10% 37060 | -4/Hub_04(d) | Destroyed Lightning 37077 | -4/Hub_04(d) | Lost 15 parts (1p6n2u6w) 37081 | -4/Hub_04(d) | Destroyed 11 combat bots 37506 | -4/Hub_04(d) | Found Prototype Device 37506 | -4/Hub_04(d) | Identified Exp. Thermal Shield 37665 | -4/Hub_04(d) | Discovered exit to Research (range 6) 37681 | -4/Hub_04(d) | Core integrity fell below 20% 37691 | -4/Hub_04(d) | System corruption reached 30% 37706 | -4/Hub_04(d) | Entered Research 37706 | -3/Research | Evolved 2 slots: Propulsion x2 37734 | -3/Research | Lost 9 parts (5u4w) 38384 | -3/Research | Build established: Skirmisher 38515 | -3/Research | Found Unknown Device 38515 | -3/Research | Identified Quantum Capacitor 38706 | -3/Research | First assault squad dispatched 38752 | -3/Research | Spotted B-86 Titan 38871 | -3/Research | Lost 10 parts (1p4n1u4w) 39040 | -3/Research | Lost 3 parts (1u2w) 39107 | -3/Research | Destroyed B-86 Titan 39134 | -3/Research | Found Unknown Protection 39220 | -3/Research | Lost 3 parts (1n1u1w) 39527 | -3/Research | Lost 4 parts (1p1u2w) 39616 | -3/Research | Core integrity fell below 50% 39616 | -3/Research | System corruption reached 10% 39644 | -3/Research | Lost 3 parts (2n1w) 39861 | -3/Research | Spotted Executioner 39862 | -3/Research | Cargo convoy interrupted 39862 | -3/Research | Spotted Striker 39877 | -3/Research | Self-destructed Last Messages --------------- 39869_ Gamma Rifle destroyed. 39870_ Penetrated by Slug. 39870_ Slug penetrates Wall. 39870_ P-80 Master resets Executioner, system corruption cleaned. 39872_ Com. Wheel destroyed. 39872_ Penetrated by Slug. 39872_ Slug penetrates Wall. 39873_ Sml. Battery melted. 39873_ P-80 Master destroyed. 39873_ Slug penetrates H-77 Assassin. 39873_ Slug penetrates Wall. 39873_ Slug penetrates Reinforced Barrier. 39875_ R-10 Processor collects Unknown Hover Unit. 39875_ R-10 Processor collects Gamma Rifle. 39875_ Slug penetrates Wall. 39875_ Gamma Rifle destroyed. 39876_ P-80 Master resets H-77 Assassin, system corruption cleaned. 39876_ Com. Wheel destroyed. 39876_ Penetrated by Slug. 39876_ P-80 Master resets H-77 Assassin, system corruption cleaned. Map ----- +----------------------------------------------------+ | ?????????????????????????????????????????????????? | | ?????????????????????????????????????????????????? | | ???????????????????????????????????????????####### | | ???????????????????????????################# | | ???????????????????????????# ^ # | | ???????????????????????????# # | | ???????????????????????????# +! | | ???????????????????????????# # | | ??????????????##???????????# # | | ??????????????#"############# ######### | | ???????????????# " % #???????? | | ???????????????# ! %/ #???????? | | ???????????????# !" % #???????? | | ???????????????# "% #??????# | | ???????????????# # #?? ! " | | ???????????????############## #??????# | | ??????????????############## #???????? | | ??????????????# = #T ####+##?? | | ??????????????# ! ## ?? | | ??????????????# ;# ## | | ??????????????# ;# ^ ^ % | | ??????????????# ;; | | ??????????????# ;; | | ??????????????# ;; """ """ """ | | ??????????????# K;# "Y" """ """ | | ??????????????# @ ## " " """ """ | | ??????????????# h * ## | | ??????????????# ! =## | | ??????????????# ! m p =|%R## | | ??????????????#####E;h###p### %= | | ??????????????????# i R%R ### | | ??????????? ######## ##+######### # % | | ??????????? % ????????# #??????????#??##%% | | ??????????????? % ?????????# #???????#### ## % | | ????????????? ""???????????# #???????+ ##% | | ????????????? "????????????#+#????????#### ## | | ???????????? ? ? ?????????????" ?????????????## | | ??????????????????????????????" ??????????????### | | ????????????????????????????? #??????????????# | | ????????????????????????????? ??????????????# | | ???????????????????????????? #??????????????# | | ???????????????????????????? !!]#??????????????# | | ???????????????????????????! !]]#??????????????# | | ??????????????????????????? !] #??????????????# | | ????????????????????????????######??????????????## | | ????????????????????????????????????????????????? | | ????????????????????????????????????????????????? | | ????????????????????????????????????????????????" | | ????????????????????????????????????????????????" | | ???????????????????????????????????????????# ???" | +----------------------------------------------------+ Best States ------------- Heat Dissipation 81 Energy Generation 55 Energy Capacity 2100 Matter Stores 300 Matter Capacity 600 Sight Range 16 Robot Scan Range 19 Terrain Scan Range 20 Terrain Scan Density 210 Jamming Range 12 Cloak Strength 3 EM Shielding 2 Armor Coverage 1200 Resistance: TH 30 Resistance: EM 25 Weapon Shielding 100 Point Defense Rating 160 Phase Shifting 10 Evasion (%) 55 Targeting Accuracy 8 Target Analysis 10 Recoil Reduction 4 Energy Filtering 30 Offensive Hacking 33 Defensive Hacking 22 Trap Extractor Capacity 8 Item Schematics ----------------- Machine Analyzer | -8/Materials | Scanalyzed Imp. Sensor Array | -8/Materials | Scanalyzed Huge Storage Unit | -8/Storage | Hacked Robot Schematics ------------------ None Fabricated ------------ L-41 Fighter | x3 | -7/Factory | Preloaded Alien Tech Used ----------------- None Achievements -------------- None Challenges ------------ None Game ------ Seed HelicalArmageddonExpander Manual? 0 Play Time 02:59:25 Cumulative 224.1 hours Start 2022.03.25 @ 19:46:29 End 2022.03.26 @ 22:39:47 Sessions 5 Manual Loads 0 Difficulty Rogue Special Mode None Game No. 324 Rogue 302 Adventurer 4 Explorer 18 Win Type - Total 10 Types 8/0/0/2/0/0/0/0/0 Lore% 69 Gallery% 87 Achievement% 71 Wizard Run 0 Options --------- ASCII 0 Keyboard 1 Movement Numpad Keybinds 0 Fullscreen 1 Font 18/SmallcapsGlow Map View 76x50 Tactical HUD 1 Map Filters NONE Filters NONE Steam 1 RUN: 7169c3dc-c8c8-4f46-a0b5-703349bb155e